Cogmind - Beta 9.6 @@@ ROGUE MODE // 2020.07.16 @ 17:15:36 Player: Mr.Manatee Result: Self-destructed Performance ------------- Evolutions (2) 1000 Regions Visited (5) 1000 Robots Destroyed (13) 65 Value Destroyed (272) 272 Prototype IDs (27) 540 Alien Tech Used (0) 0 Bonus (369) 369 TOTAL SCORE: 3246 Bonus ------- Follower Combat Kills 95 Aligned with FarCom 300 Friendly Fire -26 Cogmind --------- Core Integrity 536/550 Matter 119/300 Energy 246/250 System Corruption 0% Temperature Cool (0) Movement Treading (145) Location -8/Materials Parts ------- > --- POWER (1) -------- Ion Engine > --- PROPULSION (4) --- Advanced Treads Advanced Treads Advanced Treads Advanced Treads > --- UTILITY (3) ------ Large Storage Unit Hardened Light Armor Plating Supersonic Drone Bay (0/1) > --- WEAPON (3) ------- Improved EM Shotgun Heavy Particle Gun Assault Rifle > --- INVENTORY (10) --- Ion Engine Light Treads Light Treads Medium Matter Pod (0) 0b10 Alert Chip EM Pulse Gun Field Lobotomy Kit Scythe Peak State ------------ > --- POWER ------------ Ion Engine > --- PROPULSION ------- Advanced Treads Advanced Treads Advanced Treads Advanced Treads > --- UTILITY ---------- Large Storage Unit Hardened Light Armor Plating Supersonic Drone Bay > --- WEAPON ----------- Improved EM Shotgun Heavy Particle Gun Assault Rifle > --- INVENTORY -------- Ion Engine Light Treads Light Treads Medium Matter Pod 0b10 Alert Chip EM Pulse Gun Field Lobotomy Kit Scythe [Rating: 34] Favorites ----------- Power Ion Engine Engine Ion Engine Propulsion Aluminum Leg Treads Advanced Treads Leg Aluminum Leg Utility Large Storage Unit Device Supersonic Drone Bay Storage Large Storage Unit Protection Hardened Light Armor Plating Weapon Assault Rifle Energy Gun EM Pulse Gun Ballistic Gun Assault Rifle Ballistic Cannon Improved Light Cannon Special Weapon Field Lobotomy Kit Build | -11 -10 -10 -10 -9 -8 ------- Run | Scr Mat Min Exi Min Mat Slots Evolved 4 | . . . . . 4 Power . | . . . . . . Propulsion 2 | . . . . . 2 Utility 1 | . . . . . 1 Weapon 1 | . . . . . 1 Parts Attached 24 | 5 3 . 3 . 13 Power 1 | . 1 . . . . Engine 1 | . 1 . . . . Core . | . . . . . . Reactor . | . . . . . . Propulsion 8 | 2 . . . . 6 Treads 6 | . . . . . 6 Leg 2 | 2 . . . . . Wheel . | . . . . . . Hover . | . . . . . . Flight . | . . . . . . Utility 5 | 2 1 . 1 . 1 Device 1 | . . . 1 . . Storage 3 | 2 1 . . . . Processor . | . . . . . . Hackware . | . . . . . . Protection 1 | . . . . . 1 Artifact . | . . . . . . Weapon 10 | 1 1 . 2 . 6 Energy Gun 3 | 1 . . . . 2 Energy Cannon . | . . . . . . Ballistic Gun 4 | . 1 . 1 . 2 Ballistic Cannon 1 | . . . . . 1 Launcher . | . . . . . . Special Weapon 2 | . . . 1 . 1 Impact Weapon . | . . . . . . Slashing Weapon . | . . . . . . Piercing Weapon . | . . . . . . Special Melee Weapon . | . . . . . . Unidentified Prototypes 3 | . . . . . 3 Parts Lost 1 | . . . . . 1 Power . | . . . . . . Propulsion . | . . . . . . Utility . | . . . . . . Weapon 1 | . . . . . 1 Highest Loss Streak 1 | . . . . . 1 Average Slot Usage (%) 90 | . 77 100 94 100 85 Engine 10 | . 2 14 14 14 9 Treads 5 | . . . . . 18 Leg 21 | . 28 28 28 28 6 Device 6 | . . . 6 14 9 Storage 18 | . 28 28 21 14 9 Protection 2 | . . . . . 8 Energy Gun 11 | . 14 14 14 14 3 Ballistic Gun 11 | . 3 14 8 14 16 Naked Turns . | . . . . . . Heaviest Build 36 | 10 29 29 29 26 36 Greatest Support 88 | 20 20 20 20 20 88 Greatest Overweight (x) 3 | 3 1 1 1 1 1 Average Overweight (x) . | . . 1 1 1 . Largest Inventory Capacity 12 | 8 12 12 12 10 10 Average Capacity 10 | 6 11 12 11 10 10 Most Carried 10 | 6 8 7 10 9 10 Average Carried 7 | 3 7 7 8 9 8 Final Capacity 12 | 8 12 12 10 10 10 Final Carried 9 | 6 7 7 9 9 8 Class Distribution -------------------- 82% | Mutant 17% | Skirmisher Dominant Class ---------------- Mutant | -10/Materials Mutant | -10/Mines Mutant | -10/Exiles Mutant | -9/Mines Skirmisher | -8/Materials Resources | -11 -10 -10 -10 -9 -8 ----------- Run | Scr Mat Min Exi Min Mat Matter Collected 454 | 250 42 . . . 162 Remotely . | . . . . . . Salvage Created 410 | 66 77 40 . . 227 Parts 22 | 1 9 7 . . 5 Haulers Intercepted 1 | . . . . . 1 Recyclers Shooed 1 | . . . . . 1 Parts Field Recycled . | . . . . . . Retrieved Matter . | . . . . . . Parts Self-Destructed . | . . . . . . Prevented . | . . . . . . Kills | -11 -10 -10 -10 -9 -8 ------- Run | Scr Mat Min Exi Min Mat Combat Hostiles Destroyed 10 | . 3 3 . . 4 Guns 10 | . 3 3 . . 4 Classes Destroyed 6 | 1 2 . . . 3 Hauler 1 | . . . . . 1 Recycler 1 | 1 . . . . . Watcher 1 | . 1 . . . . Swarmer 6 | . 3 3 . . . Grunt 3 | . . . . . 3 Duelist 1 | . . . . . 1 Best Kill Streak 4 | 1 3 3 . . 4 Combat Bots Only 3 | . 3 3 . . 3 Max Kills in Single Turn 2 | 1 1 2 . . 1 Gunslinging 1 | . . 1 . . . Exploded . | . . . . . . Melee . | . . . . . . Uniques/NPCs Destroyed . | . . . . . . Combat | -11 -10 -10 -10 -9 -8 -------- Run | Scr Mat Min Exi Min Mat Damage Taken 567 | 30 124 52 . . 361 Core 86 | . 57 15 . . 14 Absorbed by Shields . | . . . . . . Core Remaining (%) 85 | 100 . . . 71 . Volleys Fired 41 | 10 9 5 . . 17 Largest 3 | 1 2 2 . . 3 Hottest 79 | 40 60 60 . . 79 Shots Fired 84 | 10 13 10 . . 51 Gun 71 | 10 13 10 . . 38 Cannon 13 | . . . . . 13 Launcher . | . . . . . . Special . | . . . . . . Kinetic 60 | . 4 5 . . 51 Thermal . | . . . . . . Explosive . | . . . . . . Electromagnetic 24 | 10 9 5 . . . Robot Hit Streak 9 | 3 4 7 . . 9 Robot Miss Streak 2 | 1 1 2 . . 2 Penetration Max . | . . . . . . Secondary Targets 1 | . . 1 . . . Max Gunslinging Chain 1 | . . 1 . . . Shots Hit Robots 55 | 7 8 7 . . 33 Core Hits 20 | 2 4 3 . . 11 Critical Hits 1 | . . . . . 1 Critical Kills . | . . . . . . Critical Parts Destroyed 1 | . . . . . 1 Melee Attacks . | . . . . . . Impact . | . . . . . . Slashing . | . . . . . . Piercing . | . . . . . . Sneak Attacks . | . . . . . . Combat Hostiles . | . . . . . . Follow-up Attacks . | . . . . . . Damage Inflicted 815 | 136 130 62 . . 487 Guns 613 | 96 130 62 . . 325 Cannons 162 | . . . . . 162 Explosions 40 | 40 . . . . . Melee . | . . . . . . Ramming . | . . . . . . Kinetic 527 | . 12 28 . . 487 Thermal 40 | 40 . . . . . Explosive . | . . . . . . Electromagnetic 248 | 96 118 34 . . . Impact . | . . . . . . Slashing . | . . . . . . Piercing . | . . . . . . Highest Corruption . | . . . . . . Average Corruption . | . . . . . . Corruption Purged . | . . . . . . Overload Shots . | . . . . . . Overflow Damage 15 | 15 . . . . . Projectiles . | . . . . . . Explosions 15 | 15 . . . . . Melee . | . . . . . . Knockbacks 4 | . . . . . 4 Impact . | . . . . . . Kinetic 4 | . . . . . 4 Secondary . | . . . . . . Self-Inflicted Damage 30 | 30 . . . . . Shots 1 | 1 . . . . . Rammed . | . . . . . . Targets Rammed . | . . . . . . Kicked . | . . . . . . Crushed . | . . . . . . Highest Temperature 243 | 7 . . . . 243 Average Temperature 111 | 4 . . . . 115 Received Heat Transfer 153 | . . . . . 153 Siege Activations . | . . . . . . Robots Corrupted . | . . . . . . Combat Hostiles . | . . . . . . Parts Fried . | . . . . . . Impact Corruptions . | . . . . . . Robots Melted . | . . . . . . Combat Hostiles . | . . . . . . Parts Melted . | . . . . . . Heat Transferred 50 | 50 . . . . . Parts Sabotaged . | . . . . . . Parts Stolen . | . . . . . . Parts Stripped . | . . . . . . Power Chain Reactions 1 | 1 . . . . . Missiles Intercepted . | . . . . . . Alert | -11 -10 -10 -10 -9 -8 ------- Run | Scr Mat Min Exi Min Mat Peak Influence 127 | 5 126 118 . . 127 Average Influence 32 | 3 40 64 . . 45 Maximum Alert Level . | . . . . . . Low Security (%) 100 | 100 100 100 . 100 100 Level 1 . | . . . . . . Level 2 . | . . . . . . Level 3 . | . . . . . . Level 4 . | . . . . . . Level 5 . | . . . . . . High Security . | . . . . . . Max Security . | . . . . . . Squads Dispatched 1 | . 1 . . . . Investigation . | . . . . . . Extermination . | . . . . . . Reinforcement 1 | . 1 . . . . Assault . | . . . . . . Garrison . | . . . . . . Intercept . | . . . . . . Construction Impeded . | . . . . . . Haulers Reinforced . | . . . . . . Stealth | -11 -10 -10 -10 -9 -8 --------- Run | Scr Mat Min Exi Min Mat Distress Signals . | . . . . . . Communications Jammed . | . . . . . . Distress Signals . | . . . . . . Times Spotted 14 | . 5 4 . . 5 Peak Tracking Total 3 | . 2 3 . . 3 Tactical Retreats 1 | . . 1 . . . Traps | -11 -10 -10 -10 -9 -8 ------- Run | Scr Mat Min Exi Min Mat Traps Triggered . | . . . . . . Indirectly . | . . . . . . Trap Hack Attempts . | . . . . . . Triggered . | . . . . . . Disarmed . | . . . . . . Reprogrammed . | . . . . . . Reused . | . . . . . . Traps Extracted . | . . . . . . Installed . | . . . . . . Triggered . | . . . . . . Machines | -11 -10 -10 -10 -9 -8 ---------- Run | Scr Mat Min Exi Min Mat Machines Disabled . | . . . . . . Max in Single Turn . | . . . . . . Machines Sabotaged . | . . . . . . Garrisons Compromised . | . . . . . . Overloaded Fab Kills . | . . . . . . Fab Network Shutdowns . | . . . . . . Hacking | -11 -10 -10 -10 -9 -8 --------- Run | Scr Mat Min Exi Min Mat Machines Accessed 7 | . 3 . 2 . 2 Terminals 5 | . 3 . . . 2 Fabricators . | . . . . . . Repair Stations . | . . . . . . Recycling Units . | . . . . . . Scanalyzers . | . . . . . . Garrison Access . | . . . . . . Total Hacks 16 | . 7 . 3 . 6 Successful 11 | . 6 . 3 . 2 Failed 5 | . 1 . . . 4 Catastrophic 3 | . . . . . 3 Database Lockouts . | . . . . . . Manual 12 | . 7 . 1 . 4 Terminals 13 | . 7 . . . 6 Fabricators . | . . . . . . Repair Stations . | . . . . . . Recycling Units . | . . . . . . Scanalyzers . | . . . . . . Garrison Access . | . . . . . . Terminal Hacks 11 | . 6 . 3 . 2 Record 3 | . . . 2 . 1 Robot Analysis 3 | . 3 . . . . Prototype ID Bank 1 | . 1 . . . . Branch Access Points 2 | . 1 . . . 1 Terminal Index 1 | . 1 . . . . EX-Prototype ID Bank 1 | . . . 1 . . Fabricator Hacks . | . . . . . . Repair Station Hacks . | . . . . . . Recycling Unit Hacks . | . . . . . . Scanalyzer . | . . . . . . Garrison Access Hacks . | . . . . . . Unauthorized Hacks . | . . . . . . Terminals . | . . . . . . Fabricators . | . . . . . . Repair Stations . | . . . . . . Recycling Units . | . . . . . . Scanalyzers . | . . . . . . Garrison Access . | . . . . . . Data Cores Recovered . | . . . . . . Used . | . . . . . . Hacking Detections 5 | . 3 . . . 2 Full Trace Events . | . . . . . . Feedback Events . | . . . . . . Feedback Blocked . | . . . . . . Robot Schematics Acquired . | . . . . . . Robots Built . | . . . . . . Matter . | . . . . . . Time . | . . . . . . Total Robot Build Rating . | . . . . . . Part Schematics Acquired . | . . . . . . Parts Built . | . . . . . . Matter . | . . . . . . Time . | . . . . . . Total Part Build Rating . | . . . . . . Parts Repaired . | . . . . . . Time . | . . . . . . Parts Recycled . | . . . . . . Recycled Matter . | . . . . . . Retrieved Matter . | . . . . . . Retrieved Components . | . . . . . . Parts Scanalyzed . | . . . . . . Part Schematics Acquired . | . . . . . . Parts Damaged . | . . . . . . Bothacking | -11 -10 -10 -10 -9 -8 ------------ Run | Scr Mat Min Exi Min Mat Used RIF Installer . | . . . . . . Robots Hacked . | . . . . . . Non-combat . | . . . . . . Combat . | . . . . . . Robot Hacks Applied . | . . . . . . Relay Couplers Released . | . . . . . . Robots Rewired . | . . . . . . Allies Hacked . | . . . . . . Hacks Repelled . | . . . . . . Allies | -11 -10 -10 -10 -9 -8 -------- Run | Scr Mat Min Exi Min Mat Total Allies 2 | . . . . 2 . Largest Group 2 | . . . . 2 2 Highest-Rated Group 45 | . . . . 45 45 Highest-Rated Ally 31 | . . . . 31 31 Total Orders 4 | . . . 3 . 1 EXPLORE 1 | . . . . . 1 RETURN 3 | . . . 3 . . Ally Attacks 10 | . . . . . 10 Total Damage 202 | . . . . . 202 Kills 3 | . . . . . 3 Allies Corrupted . | . . . . . . Allies Melted . | . . . . . . Intel | -11 -10 -10 -10 -9 -8 ------- Run | Scr Mat Min Exi Min Mat Robot Analysis Total 3 | . 3 . . . . Derelict Logs Recovered . | . . . . . . Drone Launches 4 | . . . 3 . 1 Drone Recoveries 3 | . . . 3 . . Exploration | -11 -10 -10 -10 -9 -8 ------------- Run | Scr Mat Min Exi Min Mat Turns Passed 1789 | 128 276 139 488 281 477 Spaces Moved 1060 | 79 175 83 306 188 229 Core 47 | 47 . . . . . Treads 127 | . . . . . 127 Legs 886 | 32 175 83 306 188 102 Wheels . | . . . . . . Hover . | . . . . . . Flight . | . . . . . . Fastest Speed 50 | 50 120 150 150 150 145 Average Speed 146 | 115 142 150 150 150 150 Slowest Speed 200 | 200 150 150 150 150 160 Overloaded Moves . | . . . . . . Propulsion Burnouts . | . . . . . . Robots Hopped . | . . . . . . Cave-ins Triggered . | . . . . . . Exploration Rate (%) 28 | 5 22 19 62 39 21 Regions Visited 5 Branch Regions 3 Pre-discovered Areas 1 | . . . 1 . . Known Exits Taken 1 | . 1 . . . . Unknown Exits Taken 4 | 1 . 1 1 1 . Scrap Searched . | . . . . . . Spaces Dug . | . . . . . . Terrain Destroyed . | . . . . . . Melee . | . . . . . . Projectile . | . . . . . . AOE . | . . . . . . Actions | -11 -10 -10 -10 -9 -8 --------- Run | Scr Mat Min Exi Min Mat Total 1225 | 104 188 88 338 187 320 Wait 71 | . . 1 18 . 52 Move 1055 | 78 174 82 305 187 229 Hop . | . . . . . . Pick Up 17 | 9 2 . 5 . 1 Fast Attach 12 | 4 . . 1 . 7 Attach 7 | 1 2 . 2 . 2 Detach 3 | . . . 2 . 1 Swap 6 | . 1 . . . 5 Drop 12 | 2 . . 4 . 6 Fire 41 | 10 9 5 . . 17 Melee . | . . . . . . Ram . | . . . . . . Kick . | . . . . . . Crush . | . . . . . . Escape Stasis . | . . . . . . Rewire . | . . . . . . Trap . | . . . . . . Miscellaneous 1 | . . . 1 . . Route ------- -11/Scrapyard -10/Materials -10/Mines -10/Exiles -9/Mines -8/Materials History --------- Turn | Location | Event 9 | -11/Scrapyard | Discovered new exit (range 16) 129 | -11/Scrapyard | Entered Materials 262 | -10/Materials | Identified exit to Mines 316 | -10/Materials | Build established: Mutant 405 | -10/Materials | Entered Mines 417 | -10/Mines | Met a Derelict bent on vengeance 425 | -10/Mines | Deemed a non-threat by the Exiles lab entrance 425 | -10/Mines | Discovered new exit (range 5) 544 | -10/Mines | Entered Exiles 598 | -10/Exiles | Met 8R-AWN 619 | -10/Exiles | Met EX-HEX 661 | -10/Exiles | Met EX-BIN 685 | -10/Exiles | Met EX-DEC 694 | -10/Exiles | Learned location of Zion (-7) 741 | -10/Exiles | Aligned with FarCom system 742 | -10/Exiles | Given EX-Vault access code 777 | -10/Exiles | Opened EX-Vault 797 | -10/Exiles | Found Supersonic Drone Bay 822 | -10/Exiles | Found 0b10 Alert Chip 826 | -10/Exiles | Found Field Lobotomy Kit 863 | -10/Exiles | Warned to stay clear of 0b10 Research branches 1017 | -10/Exiles | Discovered new exit (range 12) 1032 | -10/Exiles | Stole three prototypes: Supersonic Drone Bay, 0b10 Alert Chip, Field Lobotomy Kit 1032 | -10/Exiles | Entered Mines 1301 | -9/Mines | Discovered new exit (range 8) 1313 | -9/Mines | Entered Materials 1313 | -8/Materials | Accompanied by 2 allies 1313 | -8/Materials | Evolved 4 slots: Propulsion x2, Utility x1, Weapon x1 1318 | -8/Materials | Led the pair of lost Derelicts to an unsafe place 1780 | -8/Materials | Build established: Skirmisher 1790 | -8/Materials | Self-destructed Last Messages --------------- 01772_ R-06 Scavenger knocked back. 01772_ K-01 Serf collects debris. 01775_ A-02 Transporter suffers critical hit. 01775_ Destroyed Lgt. Treads. 01775_ A-02 Transporter destroyed. 01777_ K-01 Serf collects debris. 01780_ Dropped Assault Rifle. 01780_ K-01 Serf collects debris. 01780_ Acquired Prototype Energy Gun. 01780_ Identified Hvy. Particle Gun. 01781_ K-01 Serf collects debris. 01783_ Dropped Imp. Light Cannon. 01784_ Acquired Prototype Energy Gun. 01784_ Identified Adv. Beam Rifle. 01784_ Malfunction: Meltdown. 01784_ Supersonic Drone Bay damaged (-52). 01784_ Ion Engine damaged (-8). 01784_ Hvy. Particle Gun damaged (-31). 01788_ Acquired Prototype Energy Gun. 01788_ Identified Imp. EM Shotgun. Map ----- +----------------------------------------------------+ | ????????????????????????# #??????????????? | | ???????################## #??????????????? | | ???????# + #??????????????? | | ???????# ########+## # #??????????????? | | ???????# ## # ###########??????????????? | | ???????# ## """ # #????????????????????????? | | ######## ## """ # #????????????????????????? | | ## """ "" # ###??????????????????????? | | ## "" # #??????????????????????? | | ########### ## """ T" # #??????????????????????? | | ########### ## """ "" # #??????????????????????? | | ! ## ## """ "" + #??????????????????????? | | ## ## # ???????????????? | | """ """ ## ########### ???????????? | | """ """ ## ## #???# """ ???????????? | | """ """ ## ##= #???######## """??????????????? | | ## ##! #???????????? """??????????????? | | ## ##! #?????????????"""???? ?????????? | | ## ## #??????????????""??? ?????????? | | ########### ##[ #????????????????? ???????? | | ?????????## ##!% ############????? ???????? | | ######???# [##/#### #???? ??????? | | ! #???# !/ != + """ "" #?? #????????? | | #???# %####### """ T" #? ??????????? | | """" #???## ##?????# """ " #^% """ ???????????? | | """" #????# ######## """ @[%*+%* """ ???????????? | | """" #????# + """=[%[k#! """ ???????????? | | """" #????########## [] ![# ??????????? | | """" #?????????????# #? ????????? | | #?????????????###########??##### #????????? | | ###???????????????????????????????????? #????????? | | ?????????????????????????????????????????????????? | | ?????????????????????????????????????????????????? | | ?????????????????????????????????????????????????? | | ?????????????????????????????????????????????????? | | ?????????????????????????????????????????????????? | | ?????????????????????????????????????????????????? | | ?????????????????????????????????????????????????? | | ?????????????????????????????????????????????????? | | ?????????????????????????????????????????????????? | | ?????????????????????????????????????????????????? | | ?????????????????????????????????????????????????? | | ?????????????????????????????????????????????????? | | ?????????????????????????????????????????????????? | | ?????????????????????????????????????????????????? | | ?????????????????????????????????????????????????? | | ?????????????????????????????????????????????????? | | ?????????????????????????????????????????????????? | | ?????????????????????????????????????????????????? | | ?????????????????????????????????????????????????? | +----------------------------------------------------+ Best States ------------- Heat Dissipation 31 Energy Generation 10 Energy Capacity 250 Matter Stores 300 Matter Capacity 300 Sight Range 16 Terrain Scan Density 10 Armor Coverage 150 Evasion (%) 40 Recoil Reduction 4 Item Schematics ----------------- None Robot Schematics ------------------ None Fabricated ------------ Nothing Alien Tech Used ----------------- None Achievements -------------- None Challenges ------------ None Game ------ Seed RecyclingCoilMeganuke Manual? 0 Play Time 00:16:56 Cumulative 45.0 hours Start 2020.07.16 @ 16:56:17 End 2020.07.16 @ 17:15:36 Sessions 1 Manual Loads 0 Difficulty Rogue Special Mode None Game No. 61 Rogue 61 Adventurer 0 Explorer 0 Win Type - Total 0 Types 0/0/0/0/0/0/0 Lore% 33 Gallery% 43 Achievement% 37 Wizard Run 0 Options --------- ASCII 0 Keyboard 0 Movement Numpad Keybinds 0 Fullscreen 2 Font 18/SmallcapsGlow Map View 76x50 Tactical HUD 1 Map Filters NONE Filters NONE Steam 1 RUN: 72ee7f71-aaf4-4300-92c8-5154c62c3318